bitfinex-derivatives/quotes_ETHF0:USTF0_20250116
["timestamp","ask_amount","ask_price","bid_price","bid_amount"]
[1737028470454,0.9182,3355.2,3354.7,2.37563715]
[1737028470655,0.59622,3355.0,3354.9,0.59622]
[1737028471357,0.59624,3354.9,3354.8,0.59624]
[1737028471554,0.4499,3355.2,3355.1,0.5962]
[1737028472052,3.80397,3355.3,3355.2,0.59618]
[1737028472457,3.2078,3355.3,3355.2,0.59618]
[1737028473347,0.59615,3355.4,3355.3,0.59616]
[1737028473553,0.59615,3355.4,3355.3,1.83416]
[1737028473755,0.59615,3355.4,3355.3,1.238]
[1737028473953,0.4711,3355.5,3355.0,2.37563715]
[1737028474150,0.59623,3355.0,3354.9,0.59622]
[1737028474345,0.59623,3355.0,3354.9,1.83322]
[1737028474561,0.59623,3355.0,3354.9,2.18997523]
[1737028474959,0.59623,3355.0,3354.9,1.237]
[1737028475157,0.59623,3354.9,3354.8,3.2078]
[1737028475356,1.54403,3354.9,3354.8,3.2078]
[1737028475955,1.54403,3354.9,3354.8,5.04105]
[1737028476561,0.4688,3354.9,3354.8,5.39803701]
[1737028477058,1.06503,3354.9,3354.8,5.04105]
[1737028477253,1.06503,3354.9,3354.8,5.39802819]
[1737028477448,0.59623,3354.9,3354.8,5.19211822]
[1737028477652,0.59623,3354.9,3354.8,4.80177819]
[1737028477954,0.59623,3354.9,3354.8,5.19213714]
[1737028478155,0.59623,3354.9,3354.8,4.80177819]
[1737028478358,0.59623,3354.9,3354.8,5.78838637]
[1737028478555,0.59623,3354.9,3354.8,5.19213637]
[1737028478954,0.59623,3354.9,3354.8,4.83515818]
[1737028479162,0.59623,3354.9,3354.8,5.19244818]
[1737028479350,0.59623,3354.9,3354.8,5.78869818]
[1737028479556,0.59623,3354.9,3354.8,5.19244818]
[1737028480254,0.59623,3354.9,3354.8,3.95544818]
[1737028480451,0.59623,3354.9,3354.8,3.56509]
[1737028480652,0.5963,3354.5,3354.4,3.2078]
[1737028480951,0.5963,3354.5,3354.4,5.19413395]
[1737028481658,0.4644,3354.8,3354.4,7.5697711]
[1737028481865,1.06066,3354.8,3354.7,0.59627]
[1737028482051,1.06066,3354.8,3354.7,0.74933395]
[1737028482659,0.4644,3354.8,3354.7,3.7212411]
[1737028482861,0.4437,3355.1,3354.7,4.36248171]
[1737028483163,0.59623,3355.0,3354.9,0.59623]
[1737028483357,0.59623,3355.0,3354.9,1.34607456]
[1737028483554,0.59621,3355.1,3355.0,0.59621]
[1737028483862,0.59621,3355.1,3355.0,3.12548171]
[1737028484765,0.59621,3355.1,3355.0,3.12700697]
[1737028486166,0.59617,3355.3,3355.2,0.59618]
[1737028486353,0.59617,3355.3,3355.2,1.34754982]
[1737028486553,0.59615,3355.4,3355.3,0.59614]
[1737028486761,0.59615,3355.4,3355.3,1.3481877]
[1737028486957,0.59615,3355.4,3355.3,0.7520477]
[1737028490067,3.80395,3355.4,3355.3,0.35930434]
[1737028490367,3.80395,3355.4,3355.3,0.75183229]
[1737028491667,3.80395,3355.4,3355.3,0.35920734]
[1737028491965,3.80395,3355.4,3355.3,0.75184841]
[1737028492362,0.59615,3355.4,3355.3,0.75184841]
[1737028494061,0.59615,3355.4,3355.3,1.34800841]
[1737028494256,0.59615,3355.4,3355.3,0.75184841]
[1737028494456,0.59615,3355.4,3355.3,3.72364556]
[1737028495167,0.59611,3355.7,3355.6,0.59609]
[1737028495364,0.59608,3355.8,3355.7,0.59607]
[1737028495668,0.4541,3355.9,3355.8,0.59607]
[1737028495970,0.59603,3356.1,3356.0,0.59602]
[1737028496160,3.6568,3356.2,3356.0,1.36147519]
[1737028496161,3.2078,3356.2,3356.0,1.36147519]
[1737028496464,3.80382,3356.2,3356.1,1.95749519]
[1737028496671,3.80382,3356.2,3356.1,1.36147519]
[1737028497165,3.80382,3356.2,3356.1,0.37269171]
[1737028498263,3.80382,3356.2,3355.7,1.237]
[1737028498460,0.59605,3355.9,3355.8,1.36147875]
[1737028499385,0.59605,3355.9,3355.8,0.96907783]
[1737028499386,1.50855,3355.9,3355.8,0.96907783]
[1737028499585,1.50855,3355.9,3355.8,1.36154414]
[1737028500087,1.50855,3355.9,3355.8,0.37272224]
[1737028500678,1.50855,3355.9,3355.8,0.96906796]
[1737028500881,1.50855,3355.9,3355.8,0.37272224]
[1737028502682,5.9125,3355.9,3355.2,3.2078]
[1737028502879,0.59616,3355.3,3355.2,3.2078]
[1737028503081,0.59616,3355.3,3355.2,5.16591656]
[1737028503384,0.59616,3355.3,3355.2,7.54155371]
[1737028504382,0.9125,3355.9,3355.2,6.94537371]
[1737028504588,1.05188,3355.9,3355.8,0.59607]
[1737028504791,1.05188,3355.9,3355.8,1.36193656]
[1737028504980,0.59608,3355.9,3355.8,1.95800656]
[1737028505687,0.59608,3355.9,3355.8,1.36193656]
[1737028505887,0.59608,3355.9,3355.8,1.95800656]
[1737028506694,0.59608,3355.9,3355.8,1.95773494]
[1737028508684,0.59608,3355.9,3355.8,1.95753585]
[1737028509784,0.59605,3356.0,3355.9,0.59604]
[1737028510089,0.59602,3356.2,3356.1,0.596]
[1737028510390,0.59602,3356.2,3356.1,1.95723538]
[1737028510887,2.9049749,3356.3,3356.1,1.36123538]
[1737028511091,2.9049749,3356.3,3356.2,4.33287253]
[1737028511386,2.9049749,3356.3,3356.2,4.33267989]
[1737028514394,1.9430749,3356.3,3356.2,4.33267989]
[1737028514692,0.59587,3357.0,3356.2,4.33267989]
[1737028514898,0.59587,3357.0,3356.9,2.37563715]
[1737028515093,0.59587,3357.0,3356.9,5.56955989]
[1737028515394,0.59586,3357.0,3356.9,5.56954989]
[1737028515999,0.59586,3357.1,3357.0,0.59585]
[1737028516191,0.59586,3357.1,3357.0,1.95676155]
[1737028516385,0.59582,3357.3,3357.2,0.59582]
[1737028516590,0.9701,3357.5,3357.2,3.14043093]
[1737028516591,0.59579,3357.4,3357.2,3.14043093]
[1737028516791,0.59579,3357.4,3357.3,0.76479378]
[1737028517592,0.59579,3357.4,3357.3,0.3725736]
[1737028517991,0.59586,3357.1,3357.0,0.59586]
[1737028518187,0.59584,3357.2,3357.1,0.59583]
[1737028518502,0.59584,3357.2,3357.1,0.76410183]
[1737028522698,0.59584,3357.2,3357.1,1.35968854]
[1737028523297,0.59584,3357.2,3357.1,1.35968378]
[1737028523604,0.59584,3357.2,3357.1,0.96839502]
[1737028523795,0.59584,3357.2,3357.1,0.37255502]
[1737028524001,0.59584,3357.2,3357.1,0.96839502]
[1737028524202,0.59584,3357.2,3357.1,0.37255502]
[1737028524402,0.59584,3357.2,3357.1,0.96839502]
[1737028524597,0.59584,3357.2,3357.1,0.37255502]
[1737028525602,0.59584,3357.2,3356.7,3.2078]
[1737028525904,0.5959,3356.8,3356.7,3.2078]
[1737028526403,0.5959,3356.8,3356.2,1.236]
[1737028526404,0.59598,3356.3,3356.2,1.236]
[1737028527299,0.59598,3356.3,3356.2,1.62770228]
[1737028527495,0.59598,3356.3,3356.2,1.236]
[1737028528105,0.59602,3356.1,3356.0,2.37563715]
[1737028528408,0.59602,3356.1,3356.0,3.61163715]
[1737028529001,0.59602,3356.1,3356.0,2.37563715]
[1737028529204,0.59602,3356.1,3356.0,3.61163715]
[1737028529399,0.59602,3356.1,3356.0,4.00344762]
[1737028529806,0.59602,3356.1,3356.0,1.236]
[1737028530402,3.6948,3356.3,3355.8,5.58343715]
[1737028530709,1.07314,3356.0,3355.9,0.39187064]
[1737028531202,1.07314,3356.0,3355.9,0.98793064]
[1737028531406,1.07314,3356.0,3355.9,1.57886894]
[1737028531603,0.59601,3356.2,3356.1,0.596]
[1737028531803,0.59601,3356.2,3356.1,2.76750779]
[1737028532207,0.59601,3356.2,3356.1,3.35831025]
[1737028532409,4.29079,3356.3,3356.2,0.596]
[1737028532610,4.29079,3356.3,3356.2,0.98787064]
[1737028532909,3.6948,3356.3,3356.2,0.98787064]
[1737028533106,1.05365,3356.5,3356.2,0.39187064]
[1737028533304,1.05365,3356.5,3356.4,0.59597]
[1737028533910,0.4577,3356.5,3356.1,2.37563715]
[1737028534207,0.59598,3356.4,3356.3,0.59597]
[1737028534403,1.07928,3356.4,3356.3,0.98755092]
[1737028534611,0.4833,3356.4,3356.3,0.98755092]
[1737028534802,1.07927,3356.4,3356.3,0.98755092]
[1737028535006,1.07927,3356.4,3356.3,0.39158092]
[1737028535512,1.07927,3356.4,3356.3,0.98756092]
[1737028535921,0.4833,3356.4,3356.3,1.57824339]
[1737028536410,1.07927,3356.4,3356.3,1.57824339]
[1737028536806,1.07927,3356.4,3356.3,1.57868363]
[1737028537008,0.4833,3356.4,3356.3,1.57868363]
[1737028537610,1.07927,3356.4,3356.3,1.9481821]
[1737028538011,1.07927,3356.4,3356.3,1.3522021]
[1737028538412,1.07927,3356.4,3356.3,1.9481821]
[1737028539107,1.07927,3356.4,3356.3,3.1841821]
[1737028539515,0.4833,3356.4,3356.3,3.1841821]
[1737028539713,1.07927,3356.4,3356.3,3.6741821]
[1737028539909,1.07927,3356.4,3356.3,2.5882021]
[1737028540214,1.07927,3356.4,3356.3,0.76151963]
[1737028540417,1.07927,3356.4,3356.3,0.36949847]
[1737028540710,1.07927,3356.4,3356.3,0.36966961]
[1737028542711,1.07927,3356.4,3356.3,0.7619359]
[1737028543410,1.07927,3356.4,3356.3,0.36966961]
[1737028543818,0.59609,3355.7,3355.6,0.22919455]
[1737028544114,0.59609,3355.7,3355.6,1.95011909]
[1737028544314,0.59609,3355.7,3355.6,1.57319608]
[1737028544620,0.59609,3355.7,3355.6,0.97708608]
[1737028545018,0.59609,3355.7,3355.6,1.57319608]
[1737028545208,3.2078,3356.0,3355.6,0.97708608]
[1737028545416,0.59607,3355.9,3355.8,0.59606]
[1737028545714,0.59607,3355.9,3355.8,0.97681565]
[1737028545903,0.59607,3355.9,3355.8,0.39244164]
[1737028546105,0.59607,3355.9,3355.8,0.97696307]
[1737028546308,0.59607,3355.9,3355.8,1.57306964]
[1737028546520,3.80385,3356.0,3355.9,0.59606]
[1737028546816,3.80385,3356.0,3355.9,0.98850164]
[1737028547017,0.59605,3356.0,3355.9,0.98850164]
[1737028547220,1.04694,3356.1,3356.0,0.59604]
[1737028547406,1.04694,3356.1,3356.0,0.98848164]
[1737028547818,1.04694,3356.1,3356.0,0.39244164]
[1737028548814,1.04694,3356.1,3356.0,0.98848164]
[1737028549317,1.04694,3356.1,3356.0,1.57295651]
[1737028549615,3.2078,3356.5,3356.0,0.97691651]
[1737028549923,0.596,3356.4,3356.3,0.59597]
[1737028550215,0.596,3356.4,3356.3,0.98842164]
[1737028550216,0.59597,3356.4,3356.3,0.98842164]
[1737028550416,0.59597,3356.4,3356.3,0.98824591]
[1737028551319,0.59597,3356.4,3356.3,1.5727841]
[1737028551925,0.59597,3356.4,3356.3,1.57273052]
[1737028553110,0.59597,3356.4,3356.3,0.97675052]
[1737028553613,0.59597,3356.4,3356.3,0.39221233]
[1737028553925,0.59597,3356.4,3356.3,0.39239361]
[1737028555322,0.59597,3356.4,3356.3,0.97726602]
[1737028555924,0.59597,3356.4,3356.3,1.34317128]
[1737028556528,0.59597,3356.4,3356.3,0.75829887]
[1737028558426,0.59597,3356.4,3356.3,0.36590526]
[1737028558630,0.59597,3356.4,3356.3,0.75919897]
[1737028558828,0.59597,3356.4,3356.3,0.02029897]
[1737028559028,0.59597,3356.4,3355.7,3.2078]
[1737028559029,0.59607,3355.8,3355.7,3.2078]
[1737028559632,0.59607,3355.8,3355.7,3.80389]
[1737028560129,0.59607,3355.8,3355.7,3.2078]
[1737028560435,0.59607,3355.8,3355.7,3.80389]
[1737028560634,0.59607,3355.8,3355.7,3.2078]
[1737028560934,0.59607,3355.8,3355.7,3.80389]
[1737028561136,0.59606,3356.0,3355.9,0.59603]
[1737028561327,0.59599,3356.4,3356.3,0.59596]
[1737028561832,0.59598,3356.3,3356.2,1.83199]
[1737028562029,0.59598,3356.3,3356.2,1.718]
[1737028562433,0.59598,3356.3,3356.2,1.236]
[1737028567130,0.59598,3356.3,3356.2,2.307]
[1737028568240,0.59598,3356.3,3356.2,2.1771]
[1737028568936,0.59598,3356.3,3356.2,2.7731]
[1737028569343,3.2078,3356.5,3356.2,2.1771]
[1737028569635,0.59595,3356.7,3356.6,0.59591]
[1737028570538,0.59595,3356.6,3356.5,0.59595]
[1737028570940,0.59595,3356.6,3356.5,1.34735779]
[1737028571440,0.59595,3356.6,3356.5,0.59595]
[1737028571640,0.59595,3356.6,3356.5,1.34713937]
[1737028572933,0.59592,3356.8,3356.7,0.5959]
[1737028573144,0.00222548,3357.1,3356.7,6.33462652]
[1737028573440,0.59808548,3357.1,3357.0,0.59586]
[1737028573638,0.59808548,3357.1,3357.0,1.34704937]
[1737028574545,0.59808548,3357.1,3357.0,0.75118937]
[1737028575035,0.59808548,3357.1,3357.0,0.36210816]
[1737028575242,0.59808548,3357.1,3357.0,0.75114201]
[1737028575438,0.59808548,3357.1,3357.0,0.36210816]
[1737028575942,0.5959,3356.8,3356.7,3.2078]
[1737028576146,0.5959,3356.8,3356.7,3.95902693]
[1737028576346,0.5959,3356.8,3356.7,0.3621252]
[1737028576842,0.596,3356.2,3356.1,3.2078]
[1737028577047,0.596,3356.2,3356.1,0.75153014]
[1737028577234,5.0,3356.2,3355.3,5.23830878]
[1737028577437,0.59613,3355.5,3355.4,0.75187054]
[1737028578644,6.17956715,3355.5,3355.4,0.75187054]
[1737028578948,0.59627,3354.7,3354.6,3.2078]
[1737028579139,0.59627,3354.7,3354.6,3.59725252]
[1737028579840,0.59627,3354.7,3354.6,4.19354252]
[1737028580242,0.59627,3354.7,3354.6,3.59725252]
[1737028581442,0.59627,3354.7,3354.6,4.19354252]
[1737028581739,0.59627,3354.8,3354.6,3.59473891]
[1737028581944,0.59627,3354.8,3354.7,0.38693891]
[1737028582645,0.59627,3354.7,3354.6,3.80409]
[1737028582844,0.59627,3354.7,3354.6,3.59454894]
[1737028583146,0.59627,3354.7,3354.6,4.19083894]
[1737028583746,0.59627,3354.7,3354.6,3.59454894]
[1737028584143,0.59627,3354.7,3354.6,3.2078]
[1737028588748,2.37563715,3354.9,3354.1,4.4438]
[1737028588951,0.59636,3354.2,3354.1,3.2078]
[1737028590244,3.6629,3354.4,3354.0,0.0108]
[1737028590450,0.59638,3354.1,3354.0,0.0108]
[1737028593946,0.59638,3354.1,3354.0,0.60719]
[1737028594347,0.59638,3354.1,3354.0,0.0108]
[1737028595051,0.59638,3354.1,3354.0,0.60719]
[1737028596756,0.59638,3354.1,3354.0,0.0108]
[1737028599049,0.59638,3354.1,3354.0,0.60719]
[1737028599256,0.59638,3354.1,3354.0,0.0108]
[1737028600255,3.6629,3354.4,3354.0,0.0108]
[1737028600454,3.6629,3354.4,3354.2,0.59634]
[1737028600455,0.59636,3354.3,3354.2,0.59634]
[1737028601257,5.58343715,3355.4,3354.2,5.58343715]
[1737028601462,5.58343715,3355.4,3354.8,0.59625]
[1737028601463,0.59625,3354.9,3354.8,0.59625]
[1737028602354,3.6743,3355.4,3354.7,0.9461]
[1737028602661,0.59625,3354.8,3354.7,1.54237]
[1737028603063,0.59625,3354.8,3354.7,0.9461]
[1737028603463,0.59634,3354.4,3354.3,0.59633]
[1737028603754,0.59634,3354.4,3354.3,1.04453]
[1737028604162,0.59634,3354.4,3354.3,0.4482]
[1737028604365,0.59634,3354.4,3354.3,1.04454]
[1737028605053,0.59634,3354.4,3354.3,1.40213445]
[1737028605456,0.59634,3354.4,3354.3,0.80579445]
[1737028605652,0.59634,3354.4,3354.3,1.78787432]
[1737028605859,0.59632,3354.5,3354.4,0.59631]
[1737028606158,0.59632,3354.5,3354.4,0.74332889]
[1737028607860,0.59632,3354.5,3354.4,1.33964889]
[1737028608061,0.59632,3354.5,3354.4,0.74332889]
[1737028609765,0.4872,3354.6,3354.3,0.4482]
[1737028609969,0.5963,3354.5,3354.4,0.74521056]
[1737028610156,2.97193715,3354.5,3354.4,0.74521056]
[1737028610361,0.59638,3354.1,3354.0,0.0108]
[1737028610562,0.59638,3354.1,3354.0,0.75630279]
[1737028610859,0.59638,3354.1,3354.0,0.36943116]
[1737028611369,0.59638,3354.1,3354.0,0.0108]
[1737028611769,1.06028,3354.1,3354.0,0.0108]
[1737028612164,0.59648,3353.5,3353.4,3.2078]
[1737028612470,0.59648,3353.5,3353.4,3.9532855]
[1737028613471,0.59648,3353.5,3353.4,4.5497855]
[1737028613866,0.59648,3353.5,3353.4,3.9532855]
[1737028614772,0.59648,3353.5,3353.4,4.5497855]
[1737028615770,0.59648,3353.5,3353.4,3.9532855]
[1737028617366,0.59648,3353.5,3353.4,0.7454855]
[1737028622169,0.59655,3353.1,3353.0,4.4448]
[1737028622473,0.59655,3353.1,3353.0,5.18944571]
[1737028623367,0.59655,3353.1,3353.0,3.95244571]
[1737028624177,0.59655,3353.1,3353.0,0.74464571]
[1737028624575,0.59655,3353.1,3353.0,0.74448504]
[1737028624773,0.59655,3353.1,3353.0,0.35823276]
[1737028625974,1.48755,3353.1,3353.0,0.35823276]
[1737028626174,0.891,3353.1,3352.5,0.4479]
[1737028626379,0.59662,3352.9,3352.8,0.59659]
[1737028626582,0.59662,3352.9,3352.8,0.74391012]
[1737028626779,0.59662,3352.9,3352.8,1.34052012]
[1737028626975,0.891,3353.1,3352.8,0.74391012]
[1737028627176,0.4665,3353.4,3352.7,2.37563715]
[1737028627177,0.59655,3353.2,3353.1,0.59652]
[1737028627382,0.59655,3353.2,3353.1,0.74391012]
[1737028627783,0.59662,3352.7,3352.6,3.80444]
[1737028627984,0.59662,3352.7,3352.6,4.16223833]
[1737028628182,0.59662,3352.7,3352.6,4.54818432]
[1737028628380,0.9378,3353.0,3352.6,3.95154432]
[1737028628582,0.59661,3352.9,3352.8,0.59659]
[1737028628790,4.69897,3353.7,3352.8,0.74374432]
[1737028628988,4.69897,3353.7,3353.3,0.59649]
[1737028628989,0.59652,3353.4,3353.3,0.59649]
[1737028629190,0.59652,3353.4,3353.3,1.34009828]
[1737028630987,0.59652,3353.4,3353.3,0.74360828]
[1737028631188,0.59652,3353.4,3353.3,0.35779833]
[1737028631383,0.59654,3353.2,3353.1,1.83355]
[1737028631583,0.59654,3353.2,3353.1,2.57721116]
[1737028631786,0.59654,3353.2,3353.1,2.57717383]
[1737028633190,0.59654,3353.2,3353.1,1.98062383]
[1737028633587,0.59654,3353.2,3353.1,2.57717383]
[1737028634902,0.59654,3353.2,3353.1,1.98062383]
[1737028635094,0.59654,3353.2,3353.1,0.74362383]
[1737028635897,0.59654,3353.2,3353.1,0.35772038]
[1737028636099,0.59654,3353.2,3353.1,0.74417776]
[1737028636296,0.59654,3353.2,3353.1,0.35772038]
[1737028636494,0.59663,3352.8,3352.7,0.5966]
[1737028636701,0.59663,3352.8,3352.7,1.34143782]
[1737028638101,0.59655,3353.3,3352.8,1.49152]
[1737028638402,0.59657,3353.1,3353.0,0.59655]
[1737028638598,0.59657,3353.1,3353.0,0.74483782]
[1737028638995,1.06197,3353.1,3353.0,0.74483782]
[1737028639295,0.59657,3353.1,3353.0,1.34140782]
[1737028639499,0.59657,3353.1,3353.0,0.74483782]
[1737028639999,0.59657,3353.1,3353.0,1.34140782]
[1737028640401,0.59657,3353.1,3353.0,0.74483782]
[1737028640798,0.59657,3353.1,3353.0,1.34140782]
[1737028641298,0.59657,3353.1,3353.0,0.74483782]
[1737028642207,0.59657,3353.1,3353.0,1.34140782]
[1737028642398,1.49128,3353.4,3353.0,1.34140782]
[1737028642399,1.458,3353.5,3353.0,0.74483782]
[1737028642602,0.59652,3353.4,3353.3,0.5965]
[1737028642807,0.59652,3353.4,3353.3,0.74483782]
[1737028644903,2.97215715,3353.4,3353.3,0.74483782]
[1737028645107,2.37563715,3353.4,3352.6,4.4448]
[1737028645310,0.59662,3352.8,3352.7,0.74750368]
[1737028645508,0.59662,3352.8,3352.7,1.34412368]
[1737028646015,2.97225715,3352.8,3352.7,0.74750368]
[1737028646806,0.59662,3352.8,3352.7,0.74750368]
[1737028647009,0.59662,3352.8,3352.7,0.74732925]
[1737028648818,0.59662,3352.8,3352.7,0.74723589]
[1737028649619,0.59662,3352.8,3352.7,1.34385589]
[1737028650911,0.59662,3352.8,3352.7,0.74723589]
[1737028651205,0.59662,3352.8,3352.7,1.34385589]
[1737028651812,0.59662,3352.8,3352.7,0.74723589]
[1737028652713,0.59662,3352.8,3352.7,0.74713431]
[1737028657818,0.59662,3352.8,3352.7,1.34375431]
[1737028658124,0.4553,3353.3,3352.7,0.74713431]
[1737028658318,1.94662,3353.3,3352.8,0.74713431]
[1737028658513,0.59657,3353.0,3352.9,1.23743431]
[1737028658911,0.59657,3353.0,3352.9,1.83402431]
[1737028659219,0.59657,3353.0,3352.9,1.23743431]
[1737028659723,0.59657,3353.0,3352.9,1.83402431]
[1737028660122,0.59655,3353.2,3353.1,0.59654]
[1737028660332,0.59655,3353.2,3353.1,1.34332968]
[1737028661118,4.69903,3353.5,3353.1,1.34332968]
[1737028661119,1.94217,3353.9,3353.1,3.95458968]
[1737028661322,0.59648,3353.6,3353.5,0.59646]
[1737028661517,0.59648,3353.6,3353.5,1.34324968]
[1737028662019,0.9775,3353.8,3353.5,0.74678968]
[1737028662221,0.4511,3353.9,3353.8,0.59641]
[1737028662222,0.59643,3353.9,3353.8,0.59641]
[1737028662422,0.59638,3354.2,3354.1,0.59636]
[1737028662721,0.59638,3354.2,3354.1,1.34314968]
[1737028662923,0.59638,3354.2,3354.1,0.74678968]
[1737028663826,0.59638,3354.2,3354.1,1.34316968]
[1737028664322,0.59638,3354.2,3354.1,0.74678968]
[1737028665219,0.59638,3354.2,3354.1,1.34316968]
[1737028665527,0.59638,3354.2,3354.1,0.35915979]
[1737028665825,0.59643,3353.8,3353.7,1.83344]
[1737028666023,0.59643,3353.8,3353.7,1.9829354]
[1737028666218,0.59643,3353.8,3353.7,0.7459354]
[1737028666418,0.59643,3353.8,3353.7,0.3588427]
[1737028666724,0.59643,3353.8,3353.7,0.74599829]
[1737028667425,0.59643,3353.8,3353.7,1.34244829]
[1737028668930,0.59643,3353.8,3353.7,0.74599829]
[1737028670630,1.49098,3354.1,3353.7,0.74599829]
[1737028670631,0.5964,3354.1,3353.7,0.74599829]
[1737028670833,0.4916,3354.2,3353.9,0.5964]
[1737028670834,0.59641,3354.0,3353.9,0.5964]
[1737028671020,0.59641,3354.0,3353.9,0.3588427]
[1737028671225,0.59641,3354.0,3353.9,0.74624642]
[1737028671423,0.59646,3353.6,3353.5,1.06278]
[1737028671636,0.59646,3353.6,3353.5,1.80940585]
[1737028671932,0.59646,3353.7,3353.6,0.59645]
[1737028672129,0.59646,3353.7,3353.6,1.34307585]
[1737028672428,0.59646,3353.7,3353.6,0.74662585]
[1737028672632,0.59646,3353.7,3353.6,1.34308585]
[1737028672819,0.59646,3353.7,3353.6,0.74662585]
[1737028673226,0.59645,3353.7,3353.6,0.74699078]
[1737028674332,0.59654,3353.3,3353.2,1.83252]
[1737028674537,0.59654,3353.3,3353.2,0.7472858]
[1737028679122,0.4561,3353.6,3353.2,0.7472858]
[1737028679436,0.59651,3353.5,3353.4,0.59648]
[1737028679634,0.59651,3353.5,3353.4,1.3437658]
[1737028680831,0.4597,3353.9,3353.4,0.7472858]
[1737028681036,0.59644,3353.8,3353.7,0.59643]
[1737028681332,0.59644,3353.8,3353.7,1.3437158]
[1737028681521,0.4597,3353.9,3353.7,0.7472858]
[1737028681722,0.4597,3353.9,3353.4,0.59647]
[1737028681723,0.5965,3353.5,3353.4,0.59647]
[1737028682023,0.5965,3353.5,3353.4,1.34417794]
[1737028682230,0.5965,3353.5,3353.4,0.74770794]
[1737028683432,0.5965,3353.5,3353.4,1.34420794]
[1737028684729,0.59647,3353.6,3353.5,0.59646]
[1737028685037,0.9264,3354.2,3353.5,0.74770794]
[1737028685231,0.59639,3354.1,3354.0,0.59638]
[1737028685440,0.59638,3354.1,3354.0,0.74770794]
[1737028686837,0.59638,3354.1,3354.0,1.34409794]
[1737028687536,0.59638,3354.1,3354.0,0.74770794]
[1737028688330,0.59638,3354.1,3354.0,1.34409794]
[1737028689238,0.4846,3354.4,3354.0,1.34409794]
[1737028689239,0.4846,3354.4,3354.0,0.74770794]
[1737028689537,0.59636,3354.2,3354.1,1.34458965]
[1737028689736,0.4846,3354.4,3354.1,1.34458965]
[1737028689737,0.4846,3354.4,3354.3,0.59634]
[1737028689939,0.4846,3354.4,3354.3,1.34457965]
[1737028690128,1.08092,3354.4,3354.3,1.34457965]
[1737028690341,0.4846,3354.4,3354.3,1.34457965]
[1737028690738,1.08092,3354.4,3354.3,1.34457965]
[1737028691339,0.4846,3354.4,3354.3,1.34457965]
[1737028691854,1.08092,3354.4,3354.3,1.34534689]
[1737028692047,0.4601,3354.6,3354.3,1.34534689]
[1737028692252,5.17042,3354.9,3354.3,1.34534689]
[1737028692253,0.59628,3354.8,3354.7,0.59625]
[1737028692449,0.59628,3354.8,3354.7,1.34525689]
[1737028693249,0.59628,3354.8,3354.7,0.74900689]
[1737028693452,0.59628,3354.8,3354.7,1.34527689]
[1737028693649,0.91,3355.1,3354.7,0.74900689]
[1737028693854,0.59623,3355.0,3354.9,0.59622]
[1737028694053,1.50621,3355.1,3355.0,0.59622]
[1737028694246,0.4447,3355.2,3355.0,1.34522689]
[1737028694448,1.04089,3355.2,3355.1,0.74900689]
[1737028695954,1.04089,3355.2,3355.1,1.34520689]
[1737028696453,1.04089,3355.2,3355.1,0.74900689]
[1737028696961,1.04089,3355.2,3355.1,1.34520689]
[1737028697155,0.59619,3355.2,3355.1,1.34414807]
[1737028697456,0.59618,3355.3,3355.2,0.59616]
[1737028697964,0.9358,3355.4,3355.3,0.59616]
[1737028697965,1.53196,3355.4,3355.3,0.59616]
[1737028698152,1.53194,3355.4,3355.3,0.59616]
[1737028698553,0.9358,3355.4,3355.3,0.59616]
[1737028698758,1.53194,3355.4,3355.3,0.59616]
[1737028702558,0.59614,3355.4,3355.3,0.59616]
[1737028702754,0.4794,3355.6,3355.2,0.47]
[1737028703159,0.59616,3355.4,3355.3,0.59615]
[1737028703455,0.59616,3355.3,3355.2,1.06617]
[1737028703660,0.59616,3355.3,3355.2,1.42440715]
[1737028703857,0.59616,3355.3,3355.2,1.06617]
[1737028705156,0.59616,3355.3,3355.2,0.47]
[1737028705457,0.59616,3355.3,3354.9,3.2078]
[1737028705458,0.59622,3355.0,3354.9,3.2078]
[1737028706657,1.08572,3355.0,3354.9,3.2078]
[1737028707360,0.59632,3354.5,3354.4,0.59632]
[1737028707558,0.59632,3354.5,3354.4,1.34172224]
[1737028708556,0.59632,3354.5,3354.4,1.34246645]
[1737028709152,0.59632,3354.5,3354.4,0.74614645]
[1737028709358,0.59632,3354.5,3354.4,1.34246645]
[1737028709553,0.59632,3354.5,3354.4,0.74614645]
[1737028709758,0.59632,3354.5,3354.4,1.34246645]
[1737028709954,0.59632,3354.5,3354.4,0.74614645]
[1737028710963,0.59632,3354.5,3354.4,0.35893605]
[1737028712156,0.4443,3354.7,3354.2,3.6578]
[1737028712464,0.59634,3354.3,3354.2,3.6578]
[1737028712971,1.04844,3354.3,3354.2,3.6578]
[1737028713172,1.04844,3354.3,3354.2,3.2078]
[1737028713368,0.59641,3353.9,3353.8,5.03921]
[1737028713858,0.59641,3353.9,3353.8,0.59641]
[1737028714168,0.4529,3354.2,3354.0,0.59638]
[1737028714169,0.5964,3354.1,3354.0,0.59638]
[1737028714367,0.5964,3354.1,3354.0,1.34387389]
[1737028715659,0.5964,3354.1,3354.0,0.74749389]
[1737028715966,0.5964,3354.1,3354.0,1.34388389]
[1737028717174,0.5964,3354.1,3354.0,0.74749389]
[1737028717359,0.4529,3354.2,3353.8,3.2078]
[1737028717671,2.97202715,3354.0,3353.8,3.2078]
[1737028717871,0.59641,3353.9,3353.8,3.2078]
[1737028718071,0.59641,3353.9,3353.8,4.16422142]
[1737028718270,0.59641,3353.9,3353.8,4.55259719]
[1737028721265,0.5964,3354.1,3354.0,0.59638]
[1737028721465,0.4529,3354.2,3354.0,0.74836719]
[1737028721665,0.4529,3354.2,3353.9,0.473]
[1737028721666,1.04926,3354.2,3354.1,0.74800344]
[1737028722072,1.04926,3354.2,3354.1,0.35982855]
[1737028722675,1.04926,3354.2,3354.1,0.74811213]
[1737028723273,3.2078,3354.8,3354.1,0.74811213]
[1737028723471,2.92242,3354.7,3354.2,0.74811213]
[1737028723666,0.59634,3354.4,3354.3,1.34443213]
[1737028723971,0.59634,3354.4,3354.3,0.74811213]